[Event "EYCC Open-U18 2019"]
[Site "Bratislava"]
[Date "2019.08.10"]
[Round "9.39"]
[White "Marzo Pie, Xavier"]
[Black "Toquero Gracia, Pau"]
[Result "1-0"]
[ECO "A41"]
[WhiteElo "2202"]
[BlackElo "2080"]
[Annotator "NA"]
[PlyCount "71"]
[EventDate "2019.08.02"]
[EventType "swiss"]
[EventCountry "SVK"]
[SourceTitle "playchess.com"]
[Source "ChessBase"]
[SourceQuality "1"]
[TimeControl "40/5400+30:1800+30"]

1. d4 {[%emt 0:00:00]} d6 {[%emt 0:00:00]} 2. c4 {[%emt 0:00:00]} e5 {[%emt 0:00:00]} 3. d5 {[%emt 0:00:00]} f5 {[%emt 0:00:00]} 4. e4 {[%emt 0:00:00]} Nf6 {[%emt 0:00:18]} 5. Nc3 {[%emt 0:00:21]} Nxe4 {[%emt 0:00:56]} 6. Nxe4 {[%emt 0:00:32]} fxe4 {[%emt 0:00:03]} 7. Ne2 {[%emt 0:00:30]} Nd7 {[%emt 0:00:14]} 8. Ng3 {[%emt 0:00:38]} Nf6 {[%emt 0:00:11]} 9. Bg5 {[%emt 0:00:42]} Be7 {[%emt 0:01:30]} 10. Bxf6 {[%emt 0:03:32]} Bxf6 {[%emt 0:00:01]} 11. Nxe4 {[%emt 0:00:10]} Bf5 {[%emt 0:01:41]} 12. Bd3 {[%emt 0:00:09]} Bxe4 {[%emt 0:01:11]} 13. Bxe4 {[%emt 0:00:21]} Qd7 {[%emt 0:02:19]} 14. Qc2 {[%emt 0:01:36]} g6 {[%emt 0:08:08]} 15. O-O-O {[%emt 0:04:43]} Ke7 {[%emt 0:18:32]} 16. Kb1 {[%emt 0:01:44]} a5 {[%emt 0:06:12]} 17. h4 {[%emt 0:01:20]} Qg4 {[%emt 0:02:43]} 18. f3 {[%emt 0:08:43]} Qf4 {[%emt 0:00:58]} 19. h5 {[%emt 0:01:39]} Qg5 {[%emt 0:04:53]} 20. c5 {[%emt 0:02:20]} Kf7 {[%emt 0:04:17]} 21. cxd6 {[%emt 0:03:07]} cxd6 {[%emt 0:00:04]} 22. Qc7+ {[%emt 0:01:33]} Be7 {[%emt 0:00:10]} 23. g4 {[%emt 0:10:01]} Kg7 {[%emt 0:09:56]} 24. hxg6 {[%emt 0:12:09]} hxg6 {[%emt 0:00:05]} 25. Rxh8 {[%emt 0:00:12]} Rxh8 {[%emt 0:00:02]} 26. Qxb7 {[%emt 0:00:30]} Rh2 {[%emt 0:07:09]} 27. Qa7 {[%emt 0:01:08]} Qh4 {[%emt 0:17:07]} 28. Qxa5 {[%emt 0:02:42]} Qf2 {[%emt 0:00:28]} 29. Qc3 {[%emt 0:01:31]} Bd8 {[%emt 0:09:54]} 30. Bc2 {[%emt 0:05:26]} Bb6 {[%emt 0:04:07]} 31. Qd3 {[%emt 0:00:25]} Bd4 {[%emt 0:01:10]} 32. Qxg6+ {[%emt 0:00:10]} Kf8 {[%emt 0:00:03]} 33. Qxd6+ {[%emt 0:01:19]} Kg8 {[%emt 0:00:01]} 34. Qg6+ {[%emt 0:00:40]} Kf8 {[%emt 0:00:28]} 35. d6 {[%emt 0:01:42]} Bxb2 {[%emt 0:00:05]} 36. d7 {[%emt 0:01:02]} 1-0

[Event "EYCC Open-U18 2019"]
[Site "Bratislava"]
[Date "2019.08.10"]
[Round "9.40"]
[White "Pirard, Natan"]
[Black "Novosel, Marko"]
[Result "1-0"]
[ECO "B52"]
[WhiteElo "2153"]
[BlackElo "1981"]
[Annotator "NA"]
[PlyCount "45"]
[EventDate "2019.08.02"]
[EventType "swiss"]
[EventCountry "SVK"]
[SourceTitle "playchess.com"]
[Source "ChessBase"]
[SourceQuality "1"]
[TimeControl "40/5400+30:1800+30"]

1. e4 {[%emt 0:00:00]} c5 {[%emt 0:00:00]} 2. Nf3 {[%emt 0:00:00]} d6 {[%emt 0:00:09]} 3. Bb5+ {[%emt 0:00:29]} Bd7 {[%emt 0:00:13]} 4. Bxd7+ {[%emt 0:00:05]} Qxd7 {[%emt 0:00:08]} 5. O-O {[%emt 0:00:06]} g6 {[%emt 0:01:56]} 6. c3 {[%emt 0:00:12]} Bg7 {[%emt 0:01:58]} 7. d4 {[%emt 0:00:04]} cxd4 {[%emt 0:00:07]} 8. cxd4 {[%emt 0:00:04]} Nf6 {[%emt 0:05:08]} 9. Nc3 {[%emt 0:00:02]} O-O {[%emt 0:01:41]} 10. Qe2 {[%emt 0:00:37]} e6 {[%emt 0:06:50]} 11. Bf4 {[%emt 0:02:29]} Kh8 {[%emt 0:15:02]} 12. Rfe1 {[%emt 0:01:08]} d5 {[%emt 0:06:17]} 13. Ne5 {[%emt 0:03:17]} Qd8 {[%emt 0:02:07]} 14. Bg5 {[%emt 0:01:29]} Qa5 {[%emt 0:23:48]} 15. Bxf6 {[%emt 0:01:26]} Bxf6 {[%emt 0:00:07]} 16. exd5 {[%emt 0:00:04]} exd5 {[%emt 0:00:17]} 17. Qf3 {[%emt 0:00:33]} Bxe5 {[%emt 0:01:01]} 18. dxe5 {[%emt 0:02:50]} Nc6 {[%emt 0:07:15]} 19. Nxd5 {[%emt 0:02:04]} Rae8 {[%emt 0:03:43]} 20. Rad1 {[%emt 0:21:07]} Qxa2 {[%emt 0:04:55]} 21. Qc3 {[%emt 0:10:08]} Kg7 {[%emt 0:03:12]} 22. Nf6 {[%emt 0:04:37]} Re6 {[%emt 0:01:39]} 23. Ra1 {[%emt 0:00:29]} 1-0

[Event "EYCC Open-U18 2019"]
[Site "Bratislava"]
[Date "2019.08.10"]
[Round "9.41"]
[White "Alivodic, Dario"]
[Black "Bulockin, Martin"]
[Result "1/2-1/2"]
[ECO "A67"]
[WhiteElo "2120"]
[BlackElo "2210"]
[Annotator "ChessBase"]
[PlyCount "72"]
[EventDate "2019.08.02"]
[EventType "swiss"]
[EventCountry "SVK"]
[SourceTitle "playchess.com"]
[Source "ChessBase"]
[SourceQuality "1"]
[TimeControl "40/5400+30:1800+30"]

1. d4 {[%emt 0:00:00]} Nf6 {[%emt 0:00:00]} 2. c4 {[%emt 0:00:00]} c5 {[%emt 0:00:22]} 3. d5 {[%emt 0:00:00]} e6 {[%emt 0:00:12]} 4. Nc3 {[%emt 0:00:00]} exd5 {[%emt 0:00:15]} 5. cxd5 {[%emt 0:00:00]} d6 {[%emt 0:00:10]} 6. e4 {[%emt 0:00:00]} g6 {[%emt 0:00:18]} 7. f4 {[%emt 0:00:03]} Bg7 {[%emt 0:01:13]} 8. Bb5+ {[%emt 0:00:04]} Nfd7 {[%emt 0:00:04]} 9. Nf3 {[%emt 0:00:05]} O-O {[%emt 0:03:02]} 10. O-O {[%emt 0:00:36]} a6 {[%emt 0:01:43]} 11. Bd3 {[%emt 0:02:44]} b5 {[%emt 0:00:47]} 12. Kh1 {[%emt 0:00:10]} b4 {[%emt 0:06:39]} 13. Ne2 {[%emt 0:01:02]} a5 {[%emt 0:01:25]} 14. f5 {[%emt 0:02:43]} Ne5 {[%emt 0:08:49]} 15. Bg5 {[%emt 0:04:17]} f6 {[%emt 0:02:30]} 16. Nxe5 {[%emt 0:01:35]} fxg5 {[%emt 0:00:46]} 17. Nc4 {[%emt 0:00:07]} Ba6 {[%emt 0:06:57]} 18. fxg6 {[%emt 0:00:46]} Rxf1+ {[%emt 0:01:46]} 19. Qxf1 {[%emt 0:00:03]} hxg6 {[%emt 0:00:21]} 20. e5 {[%emt 0:00:23]} Nd7 {[%emt 0:10:45]} 21. e6 {[%emt 0:07:56]} Nf6 {[%emt 0:01:17]} 22. Ng3 {[%emt 0:10:37]} Bxc4 {[%emt 0:02:09]} 23. Bxc4 {[%emt 0:00:28]} Bf8 {[%emt 0:06:16]} 24. Qd3 {[%emt 0:00:28]} Kg7 {[%emt 0:00:36]} 25. Rf1 {[%emt 0:00:23]} Be7 {[%emt 0:01:59]} 26. Bb3 {[%emt 0:04:41]} Qh8 {[%emt 0:02:08]} 27. Ne4 {[%emt 0:02:57]} Qh4 {[%emt 0:02:57]} 28. Nxf6 {[%emt 0:00:40]} Bxf6 {[%emt 0:00:02]} 29. Bc2 {[%emt 0:00:29]} Qh7 {[%emt 0:03:33]} 30. Qb5 {[%emt 0:00:57]} Rf8 {[%emt 0:03:15]} 31. Bd3 {[%emt 0:19:40]} Be7 {[%emt 0:08:48]} 32. Rxf8 {[%emt 0:03:06]} Kxf8 {[%emt 0:00:14]} 33. Qb8+ {[%emt 0:01:33]} Kg7 {[%emt 0:00:16]} 34. Qe8 {[%emt 0:00:12]} Kf6 {[%emt 0:00:16]} 35. g3 {[%emt 0:10:57]} Ke5 {[%emt 0:04:38]} 36. Kg2 {[%emt 0:02:32]} Qg7 {[%emt 0:02:42]} 1/2-1/2

[Event "EYCC Open-U18 2019"]
[Site "Bratislava"]
[Date "2019.08.10"]
[Round "9.42"]
[White "Galiana Fernandez, Adrian"]
[Black "Rodriguez Izquierdo, Luis"]
[Result "0-1"]
[ECO "A58"]
[WhiteElo "2302"]
[BlackElo "2007"]
[Annotator "ChessBase"]
[PlyCount "76"]
[EventDate "2019.08.02"]
[EventType "swiss"]
[EventCountry "SVK"]
[SourceTitle "playchess.com"]
[Source "ChessBase"]
[SourceQuality "1"]
[TimeControl "40/5400+30:1800+30"]

1. d4 {[%emt 0:00:00]} Nf6 {[%emt 0:00:00]} 2. c4 {[%emt 0:00:00]} c5 {[%emt 0:00:00]} 3. d5 {[%emt 0:00:00]} b5 {[%emt 0:00:00]} 4. cxb5 {[%emt 0:00:00]} a6 {[%emt 0:00:00]} 5. bxa6 {[%emt 0:00:00]} g6 {[%emt 0:00:07]} 6. Nc3 {[%emt 0:00:00]} Bg7 {[%emt 0:00:04]} 7. e4 {[%emt 0:00:32]} O-O {[%emt 0:00:10]} 8. Be2 {[%emt 0:00:16]} Qa5 {[%emt 0:02:23]} 9. Bd2 {[%emt 0:01:14]} Bxa6 {[%emt 0:00:57]} 10. e5 {[%emt 0:00:37]} Ne8 {[%emt 0:00:42]} 11. Nf3 {[%emt 0:00:12]} d6 {[%emt 0:05:21]} 12. e6 {[%emt 0:00:32]} fxe6 {[%emt 0:02:11]} 13. Ng5 {[%emt 0:00:14]} Bxe2 {[%emt 0:10:36]} 14. Qxe2 {[%emt 0:00:22]} Nc7 {[%emt 0:01:45]} 15. Nxe6 {[%emt 0:02:19]} Nxe6 {[%emt 0:00:46]} 16. Qxe6+ {[%emt 0:00:21]} Kh8 {[%emt 0:00:40]} 17. O-O {[%emt 0:18:39]} Qd8 {[%emt 0:05:20]} 18. Ne4 {[%emt 0:05:36]} Rf5 {[%emt 0:03:48]} 19. Bc3 {[%emt 0:02:10]} Bxc3 {[%emt 0:03:13]} 20. Nxc3 {[%emt 0:00:04]} Nd7 {[%emt 0:03:24]} 21. f4 {[%emt 0:01:11]} Nb6 {[%emt 0:07:14]} 22. Rae1 {[%emt 0:02:51]} Na4 {[%emt 0:00:23]} 23. Nxa4 {[%emt 0:25:04]} Rxa4 {[%emt 0:00:10]} 24. a3 {[%emt 0:00:02]} Raxf4 {[%emt 0:01:44]} 25. Rxf4 {[%emt 0:14:36]} Rxf4 {[%emt 0:00:10]} 26. g3 {[%emt 0:01:07]} Rf5 {[%emt 0:07:04]} 27. Rf1 {[%emt 0:00:05]} Rxf1+ 28. Kxf1 Kg7 {[%emt 0:00:34]} 29. b4 {[%emt 0:02:15]} cxb4 {[%emt 0:00:45]} 30. axb4 {[%emt 0:00:02]} Qc7 {[%emt 0:00:33]} 31. Qe4 Kf8 {[%emt 0:01:08]} 32. Qd4 {[%emt 0:05:07]} Ke8 {[%emt 0:03:14]} 33. b5 {[%emt 0:02:27]} Qc1+ {[%emt 0:00:20]} 34. Kg2 {[%emt 0:01:48]} Qc2+ {[%emt 0:00:05]} 35. Kh3 {[%emt 0:05:46]} Qf5+ {[%emt 0:00:01]} 36. g4 Qf3+ 37. Kh4 {[%emt 0:00:49]} Qf6+ {[%emt 0:00:34]} 38. Qxf6 {[%emt 0:00:09]} exf6 {[%emt 0:00:04]} 0-1

[Event "EYCC Open-U18 2019"]
[Site "Bratislava"]
[Date "2019.08.10"]
[Round "9.43"]
[White "Mladek, Richard"]
[Black "Ihnat, Marek"]
[Result "1-0"]
[ECO "B78"]
[WhiteElo "2253"]
[BlackElo "1946"]
[Annotator "ChessBase"]
[PlyCount "53"]
[EventDate "2019.08.02"]
[EventType "swiss"]
[EventCountry "SVK"]
[SourceTitle "playchess.com"]
[Source "ChessBase"]
[SourceQuality "1"]
[TimeControl "40/5400+30:1800+30"]

1. e4 {[%emt 0:00:00]} c5 {[%emt 0:00:00]} 2. Nf3 {[%emt 0:00:00]} Nc6 {[%emt 0:00:01]} 3. d4 {[%emt 0:00:00]} cxd4 {[%emt 0:00:04]} 4. Nxd4 {[%emt 0:00:00]} g6 {[%emt 0:00:06]} 5. Nc3 {[%emt 0:00:00]} Bg7 {[%emt 0:00:06]} 6. Be3 {[%emt 0:00:00]} Nf6 {[%emt 0:00:12]} 7. Bc4 {[%emt 0:00:00]} d6 {[%emt 0:00:08]} 8. f3 {[%emt 0:00:53]} O-O {[%emt 0:00:34]} 9. Qd2 {[%emt 0:00:04]} Bd7 {[%emt 0:00:08]} 10. O-O-O {[%emt 0:00:07]} Rc8 {[%emt 0:00:04]} 11. Bb3 {[%emt 0:00:05]} Ne5 {[%emt 0:00:06]} 12. Kb1 {[%emt 0:00:04]} Re8 {[%emt 0:00:08]} 13. h4 {[%emt 0:01:02]} h5 {[%emt 0:00:06]} 14. g4 {[%emt 0:01:31]} hxg4 {[%emt 0:00:12]} 15. h5 {[%emt 0:00:31]} Nxh5 {[%emt 0:00:09]} 16. Rdg1 {[%emt 0:16:20]} Qa5 {[%emt 0:01:19]} 17. Bh6 {[%emt 0:01:57]} Bf6 {[%emt 0:00:33]} 18. fxg4 {[%emt 0:16:50]} Bxg4 {[%emt 0:00:25]} 19. Qe3 {[%emt 0:12:57]} Qc5 {[%emt 0:31:15]} 20. Nd5 {[%emt 0:01:19]} Bh8 {[%emt 0:18:52]} 21. c3 {[%emt 0:01:10]} Kh7 {[%emt 0:09:13]} 22. Nf4 {[%emt 0:02:33]} e6 {[%emt 0:01:48]} 23. Rh4 {[%emt 0:06:57]} Nxf4 {[%emt 0:03:51]} 24. Qxf4 {[%emt 0:01:41]} Bh5 {[%emt 0:02:27]} 25. Bd1 {[%emt 0:02:44]} Bxd1 {[%emt 0:01:39]} 26. Bf8+ {[%emt 0:00:39]} Bh5 {[%emt 0:02:12]} 27. Rxh5+ {[%emt 0:00:04]} 1-0

[Event "EYCC Open-U18 2019"]
[Site "Bratislava"]
[Date "2019.08.10"]
[Round "9.44"]
[White "Akdogan, Alperen"]
[Black "Vardanyan, Aras"]
[Result "1-0"]
[ECO "A59"]
[WhiteElo "2193"]
[BlackElo "2027"]
[Annotator "ChessBase"]
[PlyCount "109"]
[EventDate "2019.08.02"]
[EventType "swiss"]
[EventCountry "SVK"]
[SourceTitle "playchess.com"]
[Source "ChessBase"]
[SourceQuality "1"]
[TimeControl "40/5400+30:1800+30"]

1. d4 {[%emt 0:00:00]} Nf6 {[%emt 0:00:00]} 2. c4 {[%emt 0:00:00]} c5 {[%emt 0:00:00]} 3. d5 {[%emt 0:00:00]} b5 {[%emt 0:00:00]} 4. cxb5 {[%emt 0:00:11]} a6 {[%emt 0:00:00]} 5. bxa6 {[%emt 0:02:01]} g6 {[%emt 0:00:00]} 6. Nc3 {[%emt 0:00:04]} Bxa6 {[%emt 0:00:48]} 7. e4 {[%emt 0:00:08]} Bxf1 {[%emt 0:00:06]} 8. Kxf1 {[%emt 0:00:02]} d6 {[%emt 0:00:14]} 9. g3 {[%emt 0:00:19]} Bg7 {[%emt 0:00:26]} 10. Kg2 {[%emt 0:00:08]} O-O {[%emt 0:00:12]} 11. Nf3 {[%emt 0:00:05]} Nbd7 {[%emt 0:00:08]} 12. Re1 {[%emt 0:00:29]} Ng4 {[%emt 0:00:42]} 13. Qe2 {[%emt 0:06:01]} Qa5 {[%emt 0:01:18]} 14. Nd2 {[%emt 0:12:32]} Ngf6 {[%emt 0:03:40]} 15. Nc4 {[%emt 0:02:29]} Qa6 {[%emt 0:00:33]} 16. Bd2 {[%emt 0:17:00]} e6 {[%emt 0:11:33]} 17. dxe6 {[%emt 0:07:27]} fxe6 {[%emt 0:00:07]} 18. Bf4 {[%emt 0:15:12]} Ng4 {[%emt 0:21:46]} 19. Rad1 {[%emt 0:07:00]} Bd4 {[%emt 0:03:39]} 20. f3 {[%emt 0:09:20]} e5 {[%emt 0:09:49]} 21. Bg5 {[%emt 0:01:55]} Rf7 {[%emt 0:03:38]} 22. Nd5 {[%emt 0:04:20]} Raf8 {[%emt 0:02:50]} 23. Rf1 {[%emt 0:00:52]} h6 {[%emt 0:03:38]} 24. Be7 {[%emt 0:00:55]} Ne3+ {[%emt 0:00:48]} 25. Ndxe3 {[%emt 0:02:08]} Rxe7 {[%emt 0:00:11]} 26. Nd5 {[%emt 0:01:03]} Ref7 {[%emt 0:01:07]} 27. b3 {[%emt 0:00:09]} Nf6 {[%emt 0:02:03]} 28. Rd2 {[%emt 0:01:10]} Kg7 {[%emt 0:02:03]} 29. Qd3 {[%emt 0:02:35]} Qc6 {[%emt 0:01:55]} 30. Nce3 {[%emt 0:01:16]} Ra7 {[%emt 0:00:58]} 31. Qc4 {[%emt 0:01:31]} Nxd5 {[%emt 0:01:54]} 32. Nxd5 {[%emt 0:00:15]} Rfa8 {[%emt 0:00:29]} 33. a4 {[%emt 0:01:04]} Rb8 {[%emt 0:00:30]} 34. f4 {[%emt 0:02:15]} Qa6 {[%emt 0:00:57]} 35. Qxa6 {[%emt 0:01:13]} Rxa6 {[%emt 0:00:06]} 36. fxe5 {[%emt 0:00:15]} dxe5 {[%emt 0:00:18]} 37. Rd3 {[%emt 0:01:49]} c4 {[%emt 0:01:18]} 38. bxc4 {[%emt 0:00:10]} Rxa4 {[%emt 0:00:28]} 39. Rdf3 {[%emt 0:01:43]} h5 {[%emt 0:05:11]} 40. Rf7+ {[%emt 0:00:00]} Kh6 {[%emt 0:00:00]} 41. Nf6 {[%emt 0:06:50]} Rb2+ {[%emt 0:05:35]} 42. Kh1 {[%emt 0:00:23]} Ra7 {[%emt 0:00:40]} 43. Rf8 {[%emt 0:10:01]} Rf2 {[%emt 0:03:07]} 44. Rxf2 {[%emt 0:00:59]} Bxf2 {[%emt 0:00:10]} 45. Ng8+ {[%emt 0:00:51]} Kg7 {[%emt 0:00:07]} 46. Rxf2 {[%emt 0:00:03]} Ra1+ {[%emt 0:00:29]} 47. Kg2 {[%emt 0:00:05]} Kxg8 {[%emt 0:00:05]} 48. Rc2 {[%emt 0:00:08]} Kf8 {[%emt 0:00:36]} 49. c5 {[%emt 0:01:02]} Ke8 {[%emt 0:00:34]} 50. c6 {[%emt 0:08:27]} Kd8 {[%emt 0:02:45]} 51. Rc5 {[%emt 0:00:06]} Ra6 {[%emt 0:11:10]} 52. Kh3 {[%emt 0:00:16]} Kc7 {[%emt 0:02:32]} 53. Kh4 {[%emt 0:00:15]} Rb6 {[%emt 0:02:21]} 54. Kg5 {[%emt 0:02:33]} Rb2 {[%emt 0:00:14]} 55. h4 {[%emt 0:01:11]} 1-0

[Event "EYCC Open-U18 2019"]
[Site "Bratislava"]
[Date "2019.08.10"]
[Round "9.45"]
[White "Varga, Lukas"]
[Black "Riha, Vojtech"]
[Result "0-1"]
[ECO "B34"]
[WhiteElo "2046"]
[BlackElo "2197"]
[Annotator "ChessBase"]
[PlyCount "50"]
[EventDate "2019.08.02"]
[EventType "swiss"]
[EventCountry "SVK"]
[SourceTitle "playchess.com"]
[Source "ChessBase"]
[SourceQuality "1"]
[TimeControl "40/5400+30:1800+30"]

1. e4 {[%emt 0:00:00]} c5 {[%emt 0:00:00]} 2. Nf3 {[%emt 0:00:00]} Nc6 {[%emt 0:00:00]} 3. d4 {[%emt 0:00:05]} cxd4 {[%emt 0:00:00]} 4. Nxd4 {[%emt 0:00:04]} Nf6 {[%emt 0:00:00]} 5. Nc3 {[%emt 0:00:13]} e5 {[%emt 0:00:05]} 6. Ndb5 {[%emt 0:00:07]} d6 {[%emt 0:00:06]} 7. a4 {[%emt 0:01:55]} a6 {[%emt 0:01:08]} 8. Na3 {[%emt 0:00:05]} Bg4 {[%emt 0:01:53]} 9. f3 {[%emt 0:06:08]} Be6 {[%emt 0:00:10]} 10. Bc4 {[%emt 0:00:07]} Rc8 {[%emt 0:03:36]} 11. O-O {[%emt 0:11:56]} Be7 {[%emt 0:05:28]} 12. Be3 {[%emt 0:02:09]} O-O {[%emt 0:02:00]} 13. Bd5 {[%emt 0:05:21]} Qc7 {[%emt 0:08:48]} 14. Nc4 {[%emt 0:06:45]} Bxd5 {[%emt 0:10:58]} 15. Nxd5 {[%emt 0:05:55]} Nxd5 {[%emt 0:02:00]} 16. exd5 {[%emt 0:00:07]} Nd4 {[%emt 0:02:02]} 17. b3 {[%emt 0:01:03]} b5 {[%emt 0:04:46]} 18. axb5 {[%emt 0:00:56]} axb5 {[%emt 0:00:08]} 19. Bxd4 {[%emt 0:00:42]} exd4 {[%emt 0:00:52]} 20. Na3 {[%emt 0:11:38]} d3 {[%emt 0:07:42]} 21. Qxd3 {[%emt 0:02:32]} Bf6 {[%emt 0:01:43]} 22. Ra2 {[%emt 0:12:45]} Qa7+ {[%emt 0:01:02]} 23. Kh1 {[%emt 0:02:21]} b4 {[%emt 0:00:06]} 24. c4 {[%emt 0:01:35]} bxa3 {[%emt 0:00:35]} 25. b4 {[%emt 0:00:08]} Bb2 {[%emt 0:00:28]} 0-1

[Event "EYCC Open-U18 2019"]
[Site "Bratislava"]
[Date "2019.08.10"]
[Round "9.46"]
[White "Bielik, Jakub"]
[Black "Ghersinich, Enrico"]
[Result "0-1"]
[ECO "B23"]
[WhiteElo "1919"]
[BlackElo "2221"]
[Annotator "ChessBase"]
[PlyCount "108"]
[EventDate "2019.08.02"]
[EventType "swiss"]
[EventCountry "SVK"]
[SourceTitle "playchess.com"]
[Source "ChessBase"]
[SourceQuality "1"]
[TimeControl "40/5400+30:1800+30"]

1. e4 {[%emt 0:00:00]} c5 {[%emt 0:00:00]} 2. Nc3 {[%emt 0:00:00]} Nc6 {[%emt 0:00:12]} 3. f4 {[%emt 0:00:00]} g6 {[%emt 0:00:25]} 4. Nf3 {[%emt 0:00:02]} Bg7 {[%emt 0:00:17]} 5. Bb5 {[%emt 0:00:06]} Nd4 {[%emt 0:00:46]} 6. O-O {[%emt 0:00:10]} Nxb5 {[%emt 0:02:13]} 7. Nxb5 {[%emt 0:00:07]} a6 {[%emt 0:00:22]} 8. Nc3 {[%emt 0:00:09]} d6 {[%emt 0:00:22]} 9. a4 {[%emt 0:01:30]} Nf6 {[%emt 0:01:43]} 10. d3 {[%emt 0:00:51]} O-O {[%emt 0:00:33]} 11. Qe1 {[%emt 0:00:22]} Nd7 {[%emt 0:04:02]} 12. a5 {[%emt 0:09:23]} e6 {[%emt 0:01:33]} 13. f5 {[%emt 0:17:21]} exf5 {[%emt 0:02:55]} 14. exf5 {[%emt 0:00:24]} Ne5 {[%emt 0:00:15]} 15. Nxe5 {[%emt 0:11:36]} Bxe5 {[%emt 0:00:15]} 16. fxg6 {[%emt 0:01:15]} hxg6 {[%emt 0:03:47]} 17. Bf4 {[%emt 0:02:02]} Bg7 {[%emt 0:02:49]} 18. Qd2 {[%emt 0:03:36]} b5 {[%emt 0:01:50]} 19. Bg5 {[%emt 0:12:34]} Bd4+ {[%emt 0:03:37]} 20. Kh1 {[%emt 0:00:24]} f6 {[%emt 0:00:50]} 21. Be3 {[%emt 0:05:14]} Be5 {[%emt 0:00:21]} 22. Bf4 {[%emt 0:05:12]} Bb7 {[%emt 0:01:36]} 23. Bxe5 {[%emt 0:01:14]} dxe5 {[%emt 0:00:09]} 24. Qh6 {[%emt 0:00:34]} Qe8 {[%emt 0:05:55]} 25. Rae1 {[%emt 0:03:27]} Rd8 {[%emt 0:07:09]} 26. Re3 {[%emt 0:01:54]} Rd7 {[%emt 0:04:15]} 27. Rg3 {[%emt 0:00:52]} Rg7 {[%emt 0:00:16]} 28. Qe3 {[%emt 0:01:09]} Qe7 {[%emt 0:03:34]} 29. Re1 {[%emt 0:06:27]} Qc7 {[%emt 0:01:21]} 30. Rh3 {[%emt 0:04:05]} Rh7 {[%emt 0:02:39]} 31. Rh6 {[%emt 0:02:03]} Kg7 {[%emt 0:01:36]} 32. Rxh7+ {[%emt 0:00:33]} Kxh7 {[%emt 0:00:06]} 33. Rf1 {[%emt 0:02:30]} Kg7 {[%emt 0:00:26]} 34. Ne4 {[%emt 0:00:46]} Bxe4 {[%emt 0:01:30]} 35. dxe4 {[%emt 0:00:20]} c4 {[%emt 0:00:54]} 36. Qd2 {[%emt 0:01:58]} Rd8 {[%emt 0:01:18]} 37. Qf2 {[%emt 0:00:09]} Rd6 {[%emt 0:01:32]} 38. g4 {[%emt 0:03:21]} Qxa5 {[%emt 0:07:10]} 39. Qa7+ {[%emt 0:00:10]} Kg8 {[%emt 0:00:18]} 40. Qe7 {[%emt 0:00:00]} Qd8 {[%emt 0:00:00]} 41. Qxd8+ {[%emt 0:02:40]} Rxd8 {[%emt 0:01:02]} 42. Rxf6 {[%emt 0:00:04]} Rd2 {[%emt 0:04:23]} 43. Rxg6+ {[%emt 0:12:49]} Kf7 {[%emt 0:00:13]} 44. Rxa6 {[%emt 0:01:04]} Rxc2 {[%emt 0:00:15]} 45. h4 {[%emt 0:01:19]} Rxb2 {[%emt 0:00:20]} 46. Ra7+ {[%emt 0:00:24]} Ke6 {[%emt 0:00:47]} 47. Ra6+ {[%emt 0:00:12]} Kd7 {[%emt 0:00:15]} 48. Ra7+ {[%emt 0:00:12]} Kc6 {[%emt 0:00:23]} 49. Ra8 {[%emt 0:00:49]} Kb7 {[%emt 0:00:24]} 50. Ra1 {[%emt 0:00:48]} c3 {[%emt 0:00:34]} 51. Rc1 {[%emt 0:00:04]} b4 {[%emt 0:00:20]} 52. h5 {[%emt 0:00:11]} c2 {[%emt 0:01:41]} 53. Kg2 {[%emt 0:00:10]} b3 {[%emt 0:00:11]} 54. h6 {[%emt 0:00:11]} Ra2 {[%emt 0:00:13]} 0-1

[Event "EYCC Open-U18 2019"]
[Site "Bratislava"]
[Date "2019.08.10"]
[Round "9.47"]
[White "Baranciuc, Alexandr"]
[Black "Gloser, David"]
[Result "1/2-1/2"]
[ECO "B18"]
[WhiteElo "1901"]
[BlackElo "2123"]
[Annotator "ChessBase"]
[PlyCount "38"]
[EventDate "2019.08.02"]
[EventType "swiss"]
[EventCountry "SVK"]
[SourceTitle "playchess.com"]
[Source "ChessBase"]
[SourceQuality "1"]
[TimeControl "40/5400+30:1800+30"]

1. e4 {[%emt 0:00:00]} c6 {[%emt 0:00:00]} 2. d4 {[%emt 0:00:00]} d5 {[%emt 0:00:00]} 3. Nc3 {[%emt 0:00:00]} dxe4 {[%emt 0:00:10]} 4. Nxe4 {[%emt 0:00:03]} Bf5 {[%emt 0:00:13]} 5. Ng3 {[%emt 0:00:04]} Bg6 {[%emt 0:00:26]} 6. Nh3 {[%emt 0:00:30]} e6 {[%emt 0:04:40]} 7. Nf4 {[%emt 0:03:10]} Bd6 {[%emt 0:01:35]} 8. c3 {[%emt 0:00:51]} Nf6 {[%emt 0:03:10]} 9. Bc4 {[%emt 0:01:17]} Nbd7 {[%emt 0:02:31]} 10. O-O {[%emt 0:00:33]} O-O {[%emt 0:03:34]} 11. h4 {[%emt 0:09:35]} Qc7 {[%emt 0:07:05]} 12. Qf3 {[%emt 0:03:15]} e5 {[%emt 0:06:45]} 13. Nxg6 {[%emt 0:02:14]} hxg6 {[%emt 0:00:08]} 14. h5 {[%emt 0:10:29]} gxh5 {[%emt 0:11:20]} 15. Nxh5 {[%emt 0:00:59]} Nxh5 {[%emt 0:08:15]} 16. Qxh5 {[%emt 0:00:07]} exd4 {[%emt 0:00:40]} 17. cxd4 {[%emt 0:01:11]} Nf6 {[%emt 0:02:46]} 18. Qh4 {[%emt 0:01:15]} Qd7 {[%emt 0:03:07]} 19. Bg5 {[%emt 0:04:01]} Nh7 {[%emt 0:04:14]} 1/2-1/2

[Event "EYCC Open-U18 2019"]
[Site "Bratislava"]
[Date "2019.08.10"]
[Round "9.48"]
[White "Korjus, Onni"]
[Black "Pobor, Danilo"]
[Result "1-0"]
[ECO "B41"]
[WhiteElo "1848"]
[BlackElo "1996"]
[Annotator "NA"]
[PlyCount "45"]
[EventDate "2019.08.02"]
[EventType "swiss"]
[EventCountry "SVK"]
[SourceTitle "playchess.com"]
[Source "ChessBase"]
[SourceQuality "1"]
[TimeControl "40/5400+30:1800+30"]

1. e4 {[%emt 0:00:00]} e6 {[%emt 0:01:32]} 2. d4 {[%emt 0:00:00]} c5 {[%emt 0:00:49]} 3. Nf3 {[%emt 0:09:02]} cxd4 {[%emt 0:01:28]} 4. Nxd4 {[%emt 0:00:09]} a6 {[%emt 0:00:23]} 5. c4 {[%emt 0:03:06]} Nc6 {[%emt 0:00:59]} 6. Nc2 {[%emt 0:03:56]} Qc7 {[%emt 0:02:00]} 7. Nc3 {[%emt 0:01:15]} Nf6 {[%emt 0:00:10]} 8. g3 {[%emt 0:05:04]} b6 {[%emt 0:05:51]} 9. Bg2 {[%emt 0:03:18]} Bb7 {[%emt 0:00:45]} 10. Qe2 {[%emt 0:00:58]} Bc5 {[%emt 0:04:33]} 11. Bf4 {[%emt 0:08:53]} d6 {[%emt 0:01:04]} 12. O-O {[%emt 0:01:20]} Nd4 {[%emt 0:04:55]} 13. Nxd4 {[%emt 0:02:10]} Bxd4 {[%emt 0:02:10]} 14. Rac1 {[%emt 0:01:00]} Rc8 {[%emt 0:02:33]} 15. b3 {[%emt 0:11:27]} O-O {[%emt 0:02:18]} 16. Rfd1 {[%emt 0:00:59]} Bc5 {[%emt 0:01:02]} 17. Rd3 {[%emt 0:02:47]} Rfd8 {[%emt 0:04:25]} 18. Rcd1 {[%emt 0:03:35]} Qc6 {[%emt 0:08:57]} 19. Bg5 {[%emt 0:03:26]} Kf8 {[%emt 0:06:12]} 20. Rf3 {[%emt 0:04:30]} Bb4 {[%emt 0:04:29]} 21. Bxf6 {[%emt 0:18:58]} gxf6 {[%emt 0:00:17]} 22. Qe3 {[%emt 0:00:29]} Ke7 {[%emt 0:04:47]} 23. Nd5+ {[%emt 0:00:52]} 1-0